[Event "Titled Tuesday Blitz April 18 Early 2023"]
[White "Omariev, Maksim"]
[Black "Fajdetic, Hrvoje"]
[WhiteFideId "4193423"]
[BlackFideId "14501945"]
[WhiteElo "2457"]
[BlackElo "2185"]
[Result "1-0"]
[Round "05"]
[TimeControl "180+2"]
[Date "2023.04.18"]
[WhiteClock "0:00:04"]
[BlackClock "0:00:01"]

1. g4 {[%clk 0:03:00]}  h5 {[%clk 0:02:55]} 2. gxh5 {[%clk 0:01:54]}  Nf6 {[%clk 0:02:44]} 3. d4 {[%clk 0:01:53]}  d5 {[%clk 0:02:43]} 4. Bg2 {[%clk 0:01:54]}  c6 {[%clk 0:02:41]} 5. c4 {[%clk 0:01:54]}  Rxh5 {[%clk 0:02:15]} 6. Nc3 {[%clk 0:01:53]}  e6 {[%clk 0:02:02]} 7. Nf3 {[%clk 0:01:52]}  Bd6 {[%clk 0:01:58]} 8. Bg5 {[%clk 0:01:49]}  Nbd7 {[%clk 0:01:51]} 9. e4 {[%clk 0:01:44]}  dxe4 {[%clk 0:01:46]} 10. Nxe4 {[%clk 0:01:44]}  Qa5+ {[%clk 0:01:46]} 11. Bd2 {[%clk 0:01:39]}  Bb4 {[%clk 0:01:44]} 12. Nd6+ {[%clk 0:01:37]}  Ke7 {[%clk 0:01:27]} 13. c5 {[%clk 0:01:31]}  b6 {[%clk 0:01:04]} 14. Nxc8+ {[%clk 0:00:57]}  Rxc8 {[%clk 0:01:04]} 15. cxb6 {[%clk 0:00:58]}  axb6 {[%clk 0:01:01]} 16. O-O {[%clk 0:00:36]}  Bxd2 {[%clk 0:00:53]} 17. Nxd2 {[%clk 0:00:37]}  Rch8 {[%clk 0:00:47]} 18. Nf3 {[%clk 0:00:31]}  Nd5 {[%clk 0:00:28]} 19. Qc1 {[%clk 0:00:25]}  c5 {[%clk 0:00:16]} 20. Rd1 {[%clk 0:00:19]}  Qa8 {[%clk 0:00:06]} 21. dxc5 {[%clk 0:00:18]}  Nxc5 {[%clk 0:00:05]} 22. b4 {[%clk 0:00:17]}  Nd7 {[%clk 0:00:04]} 23. Qd2 {[%clk 0:00:08]}  R8h6 {[%clk 0:00:04]} 24. Rac1 {[%clk 0:00:07]}  Rg6 {[%clk 0:00:04]} 25. Kf1 {[%clk 0:00:03]}  Rf5 {[%clk 0:00:03]} 26. Qe2 {[%clk 0:00:02]}  Nf4 {[%clk 0:00:01]} 27. Rxd7+ {[%clk 0:00:03]}  Kxd7 {[%clk 0:00:01]} 28. Qd2+ {[%clk 0:00:03]}  Ke8 {[%clk 0:00:01]} 29. Bh1 {[%clk 0:00:04]} 1-0


[Site "https://www.chess.com"]

[Event "Titled Tuesday Blitz April 18 Early 2023"]
[White "Kielinkei"]
[Black "Seder, Mohammed"]
[BlackFideId "11505567"]
[WhiteElo "2456"]
[BlackElo "1862"]
[Result "0-1"]
[Round "05"]
[TimeControl "180+2"]
[Date "2023.04.18"]
[WhiteClock "0:00:20"]
[BlackClock "0:00:11"]

1. e4 {[%clk 0:03:00]}  c5 {[%clk 0:02:59]} 2. a3 {[%clk 0:02:59]}  Nc6 {[%clk 0:02:54]} 3. b4 {[%clk 0:02:59]}  cxb4 {[%clk 0:02:50]} 4. axb4 {[%clk 0:03:00]}  Nxb4 {[%clk 0:02:41]} 5. c3 {[%clk 0:03:00]}  Nc6 {[%clk 0:02:36]} 6. d4 {[%clk 0:03:01]}  d5 {[%clk 0:02:22]} 7. exd5 {[%clk 0:03:01]}  Qxd5 {[%clk 0:02:18]} 8. Na3 {[%clk 0:03:02]}  e5 {[%clk 0:01:55]} 9. Nb5 {[%clk 0:02:52]}  Qd8 {[%clk 0:01:40]} 10. d5 {[%clk 0:02:47]}  Bc5 {[%clk 0:01:02]} 11. dxc6 {[%clk 0:02:17]}  Bxf2+ {[%clk 0:00:59]} 12. Ke2 {[%clk 0:02:10]}  Bg4+ {[%clk 0:00:50]} 13. Nf3 {[%clk 0:02:10]}  Qb6 {[%clk 0:00:36]} 14. cxb7 {[%clk 0:01:35]}  Rd8 {[%clk 0:00:32]} 15. Qa4 {[%clk 0:01:16]}  Bd7 {[%clk 0:00:18]} 16. Rb1 {[%clk 0:00:42]}  a6 {[%clk 0:00:17]} 17. c4 {[%clk 0:00:28]}  axb5 {[%clk 0:00:17]} 18. cxb5 {[%clk 0:00:27]}  Bf5 {[%clk 0:00:16]} 19. Rb3 {[%clk 0:00:06]}  Bc2 {[%clk 0:00:16]} 20. Nd2 {[%clk 0:00:02]}  Bxb3 {[%clk 0:00:10]} 21. Qxb3 {[%clk 0:00:03]}  Nf6 {[%clk 0:00:07]} 22. Qf3 {[%clk 0:00:01]}  Bd4 {[%clk 0:00:05]} 23. Qc6+ {[%clk 0:00:02]}  Ke7 {[%clk 0:00:04]} 24. Qxb6 {[%clk 0:00:02]}  Bxb6 {[%clk 0:00:04]} 25. Nc4 {[%clk 0:00:03]}  Bc7 {[%clk 0:00:03]} 26. Ba3+ {[%clk 0:00:03]}  Ke6 {[%clk 0:00:03]} 27. g3 {[%clk 0:00:03]}  Nd5 {[%clk 0:00:03]} 28. Bh3+ {[%clk 0:00:04]}  f5 {[%clk 0:00:03]} 29. Rf1 {[%clk 0:00:04]}  g6 {[%clk 0:00:03]} 30. Bc5 {[%clk 0:00:03]}  Nc3+ {[%clk 0:00:03]} 31. Ke3 {[%clk 0:00:03]}  Nxb5 {[%clk 0:00:02]} 32. Rb1 {[%clk 0:00:03]}  Nd6 {[%clk 0:00:02]} 33. Nxd6 {[%clk 0:00:02]}  Bxd6 {[%clk 0:00:02]} 34. Ba7 {[%clk 0:00:03]}  Bb8 {[%clk 0:00:02]} 35. Rb6+ {[%clk 0:00:04]}  Rd6 {[%clk 0:00:02]} 36. Rxd6+ {[%clk 0:00:02]}  Kxd6 {[%clk 0:00:03]} 37. Bb6 {[%clk 0:00:01]}  Bc7 {[%clk 0:00:03]} 38. Ba7 {[%clk 0:00:01]}  Rb8 {[%clk 0:00:03]} 39. Bxb8 {[%clk 0:00:01]}  Bxb8 {[%clk 0:00:03]} 40. Bg2 {[%clk 0:00:02]}  Ba7+ {[%clk 0:00:03]} 41. Kd3 {[%clk 0:00:02]}  e4+ {[%clk 0:00:03]} 42. Kc4 {[%clk 0:00:03]}  Kc7 {[%clk 0:00:03]} 43. Kd5 {[%clk 0:00:03]}  Kxb7 {[%clk 0:00:03]} 44. Ke5 {[%clk 0:00:02]}  Kc7 {[%clk 0:00:03]} 45. Kf4 {[%clk 0:00:02]}  Bg1 {[%clk 0:00:04]} 46. h3 {[%clk 0:00:02]}  h6 {[%clk 0:00:04]} 47. Bf1 {[%clk 0:00:02]}  Bh2 {[%clk 0:00:04]} 48. Be2 {[%clk 0:00:02]}  Kd6 {[%clk 0:00:04]} 49. Bf1 {[%clk 0:00:02]}  Ke6 {[%clk 0:00:05]} 50. h4 {[%clk 0:00:02]}  Kf6 {[%clk 0:00:04]} 51. Bh3 {[%clk 0:00:03]}  Bg1 {[%clk 0:00:04]} 52. g4 {[%clk 0:00:01]}  g5+ {[%clk 0:00:05]} 53. hxg5+ {[%clk 0:00:02]}  hxg5+ {[%clk 0:00:06]} 54. Kg3 {[%clk 0:00:03]}  f4+ {[%clk 0:00:06]} 55. Kg2 {[%clk 0:00:03]}  Bd4 {[%clk 0:00:07]} 56. Kf1 {[%clk 0:00:04]}  Ke5 {[%clk 0:00:07]} 57. Ke2 {[%clk 0:00:04]}  Bc5 {[%clk 0:00:07]} 58. Bg2 {[%clk 0:00:05]}  f3+ {[%clk 0:00:07]} 59. Bxf3 {[%clk 0:00:05]}  exf3+ {[%clk 0:00:08]} 60. Kxf3 {[%clk 0:00:06]}  Bd4 {[%clk 0:00:08]} 61. Kg3 {[%clk 0:00:07]}  Be3 {[%clk 0:00:07]} 62. Kf3 {[%clk 0:00:08]}  Bf4 {[%clk 0:00:07]} 63. Kg2 {[%clk 0:00:08]}  Ke4 {[%clk 0:00:08]} 64. Kh3 {[%clk 0:00:09]}  Ke3 {[%clk 0:00:07]} 65. Kg2 {[%clk 0:00:10]}  Bd6 {[%clk 0:00:08]} 66. Kh3 {[%clk 0:00:11]}  Be7 {[%clk 0:00:08]} 67. Kg2 {[%clk 0:00:11]}  Kf4 {[%clk 0:00:08]} 68. Kh3 {[%clk 0:00:12]}  Kf3 {[%clk 0:00:08]} 69. Kh2 {[%clk 0:00:12]}  Kxg4 {[%clk 0:00:09]} 70. Kg2 {[%clk 0:00:13]}  Bc5 {[%clk 0:00:09]} 71. Kh2 {[%clk 0:00:14]}  Kf3 {[%clk 0:00:09]} 72. Kh3 {[%clk 0:00:14]}  g4+ {[%clk 0:00:07]} 73. Kh4 {[%clk 0:00:15]}  g3 {[%clk 0:00:07]} 74. Kg5 {[%clk 0:00:15]}  g2 {[%clk 0:00:08]} 75. Kf5 {[%clk 0:00:16]}  g1=Q {[%clk 0:00:08]} 76. Ke5 {[%clk 0:00:17]}  Qd4+ {[%clk 0:00:08]} 77. Kf5 {[%clk 0:00:17]}  Qd5+ {[%clk 0:00:08]} 78. Kf6 {[%clk 0:00:18]}  Kf4 {[%clk 0:00:09]} 79. Kg6 {[%clk 0:00:18]}  Qf5+ {[%clk 0:00:09]} 80. Kh6 {[%clk 0:00:18]}  Qg5+ {[%clk 0:00:09]} 81. Kh7 {[%clk 0:00:19]}  Kf5 {[%clk 0:00:09]} 82. Kh8 {[%clk 0:00:19]}  Bd4+ {[%clk 0:00:10]} 83. Kh7 {[%clk 0:00:20]}  Qg7# {[%clk 0:00:11]} 0-1


[Site "https://www.chess.com"]

[Event "Titled Tuesday Blitz April 18 Early 2023"]
[White "Golubev, Mikhail"]
[Black "Havanecz, Bianka"]
[WhiteFideId "14100983"]
[BlackFideId "704814"]
[WhiteElo "2374"]
[BlackElo "2296"]
[Result "1-0"]
[Round "05"]
[TimeControl "180+2"]
[Date "2023.04.18"]
[WhiteClock "0:00:09"]
[BlackClock "0:01:43"]

1. e4 {[%clk 0:03:00]}  c5 {[%clk 0:02:57]} 2. Nf3 {[%clk 0:02:59]}  d6 {[%clk 0:02:57]} 3. d4 {[%clk 0:02:58]}  cxd4 {[%clk 0:02:57]} 4. Nxd4 {[%clk 0:02:59]}  Nf6 {[%clk 0:02:57]} 5. Nc3 {[%clk 0:02:59]}  a6 {[%clk 0:02:57]} 6. Bc4 {[%clk 0:02:55]}  e6 {[%clk 0:02:57]} 7. O-O {[%clk 0:02:54]}  b5 {[%clk 0:02:56]} 8. Bb3 {[%clk 0:02:54]}  Nbd7 {[%clk 0:02:56]} 9. Re1 {[%clk 0:02:50]}  Nc5 {[%clk 0:02:54]} 10. Bd5 {[%clk 0:02:48]}  Bb7 {[%clk 0:02:39]} 11. b4 {[%clk 0:02:46]}  exd5 {[%clk 0:02:33]} 12. exd5+ {[%clk 0:02:45]}  Be7 {[%clk 0:02:30]} 13. bxc5 {[%clk 0:02:19]}  O-O {[%clk 0:02:29]} 14. Nf5 {[%clk 0:01:57]}  Re8 {[%clk 0:02:25]} 15. Bg5 {[%clk 0:00:45]}  Nxd5 {[%clk 0:02:06]} 16. Nxe7+ {[%clk 0:00:12]}  Nxe7 {[%clk 0:02:05]} 17. cxd6 {[%clk 0:00:11]}  f6 {[%clk 0:02:05]} 18. dxe7 {[%clk 0:00:09]}  Qxd1 {[%clk 0:02:03]} 19. Raxd1 {[%clk 0:00:09]}  fxg5 {[%clk 0:02:02]} 20. Rd7 {[%clk 0:00:08]}  Bc6 {[%clk 0:01:58]} 21. Rc7 {[%clk 0:00:06]}  Rac8 {[%clk 0:01:58]} 22. Nd5 {[%clk 0:00:03]}  Kf7 {[%clk 0:01:49]} 23. Rxc8 {[%clk 0:00:02]}  Rxc8 {[%clk 0:01:48]} 24. Nb4 {[%clk 0:00:02]}  Bb7 {[%clk 0:01:45]} 25. f3 {[%clk 0:00:02]}  Re8 {[%clk 0:01:44]} 26. Kf2 {[%clk 0:00:01]}  Rxe7 {[%clk 0:01:45]} 27. Rxe7+ {[%clk 0:00:01]}  Kxe7 {[%clk 0:01:45]} 28. Ke3 {[%clk 0:00:02]}  Kd6 {[%clk 0:01:44]} 29. Nd3 {[%clk 0:00:02]}  h6 {[%clk 0:01:43]} 30. Kd4 {[%clk 0:00:02]}  g4 {[%clk 0:01:41]} 31. Nc5 {[%clk 0:00:02]}  gxf3 {[%clk 0:01:40]} 32. Nxb7+ {[%clk 0:00:01]}  Kc7 {[%clk 0:01:40]} 33. gxf3 {[%clk 0:00:01]}  Kxb7 {[%clk 0:01:40]} 34. Ke5 {[%clk 0:00:02]}  Kb6 {[%clk 0:01:37]} 35. Kf5 {[%clk 0:00:02]}  Kc5 {[%clk 0:01:35]} 36. Kg6 {[%clk 0:00:03]}  Kc4 {[%clk 0:01:35]} 37. Kxg7 {[%clk 0:00:03]}  Kc3 {[%clk 0:01:35]} 38. f4 {[%clk 0:00:03]}  Kxc2 {[%clk 0:01:34]} 39. f5 {[%clk 0:00:04]}  a5 {[%clk 0:01:34]} 40. f6 {[%clk 0:00:05]}  b4 {[%clk 0:01:35]} 41. f7 {[%clk 0:00:05]}  a4 {[%clk 0:01:36]} 42. f8=Q {[%clk 0:00:04]}  b3 {[%clk 0:01:37]} 43. axb3 {[%clk 0:00:05]}  axb3 {[%clk 0:01:38]} 44. Qc5+ {[%clk 0:00:05]}  Kd2 {[%clk 0:01:37]} 45. Qd4+ {[%clk 0:00:05]}  Kc2 {[%clk 0:01:37]} 46. Qc4+ {[%clk 0:00:05]}  Kb2 {[%clk 0:01:38]} 47. Kxh6 {[%clk 0:00:05]}  Ka3 {[%clk 0:01:38]} 48. Qa6+ {[%clk 0:00:05]}  Kb2 {[%clk 0:01:38]} 49. Qb5 {[%clk 0:00:04]}  Kc2 {[%clk 0:01:39]} 50. Qc4+ {[%clk 0:00:05]}  Kb2 {[%clk 0:01:38]} 51. h4 {[%clk 0:00:05]}  Ka2 {[%clk 0:01:39]} 52. Qxb3+ {[%clk 0:00:06]}  Kxb3 {[%clk 0:01:39]} 53. Kg7 {[%clk 0:00:06]}  Kc4 {[%clk 0:01:40]} 54. h5 {[%clk 0:00:07]}  Kd4 {[%clk 0:01:41]} 55. h6 {[%clk 0:00:08]}  Ke3 {[%clk 0:01:42]} 56. h7 {[%clk 0:00:08]}  Kd4 {[%clk 0:01:43]} 57. h8=Q {[%clk 0:00:09]} 1-0


[Site "https://www.chess.com"]

[Event "Titled Tuesday Blitz April 18 Early 2023"]
[White "Kopczynski, Michal"]
[Black "Smietanska, Wiktoria"]
[WhiteFideId "1124200"]
[BlackFideId "21869359"]
[WhiteElo "2212"]
[BlackElo "1995"]
[Result "1-0"]
[Round "05"]
[TimeControl "180+2"]
[Date "2023.04.18"]
[WhiteClock "0:00:36"]
[BlackClock "0:00:02"]

1. e4 {[%clk 0:03:00]}  c5 {[%clk 0:02:59]} 2. d4 {[%clk 0:03:01]}  cxd4 {[%clk 0:02:59]} 3. c3 {[%clk 0:03:01]}  Nf6 {[%clk 0:02:58]} 4. Bd3 {[%clk 0:03:01]}  dxc3 {[%clk 0:02:53]} 5. Nxc3 {[%clk 0:03:02]}  Nc6 {[%clk 0:02:52]} 6. f4 {[%clk 0:03:02]}  d6 {[%clk 0:02:51]} 7. Nf3 {[%clk 0:03:02]}  e5 {[%clk 0:02:48]} 8. O-O {[%clk 0:03:02]}  Be7 {[%clk 0:02:47]} 9. Kh1 {[%clk 0:03:03]}  O-O {[%clk 0:02:47]} 10. Qe1 {[%clk 0:03:03]}  a6 {[%clk 0:02:41]} 11. Be3 {[%clk 0:03:03]}  b5 {[%clk 0:02:40]} 12. Rd1 {[%clk 0:03:03]}  Qc7 {[%clk 0:02:37]} 13. Qh4 {[%clk 0:02:41]}  Nxe4 {[%clk 0:02:17]} 14. Nd5 {[%clk 0:02:41]}  Qb7 {[%clk 0:01:31]} 15. Nxe7+ {[%clk 0:02:41]}  Nxe7 {[%clk 0:01:29]} 16. fxe5 {[%clk 0:02:37]}  d5 {[%clk 0:01:11]} 17. Bxe4 {[%clk 0:02:24]}  dxe4 {[%clk 0:01:09]} 18. Ng5 {[%clk 0:02:24]}  h6 {[%clk 0:00:54]} 19. Nxe4 {[%clk 0:02:16]}  Ng6 {[%clk 0:00:54]} 20. Nf6+ {[%clk 0:02:07]}  gxf6 {[%clk 0:00:22]} 21. Qxf6 {[%clk 0:01:54]}  Kh7 {[%clk 0:00:17]} 22. h4 {[%clk 0:01:38]}  Qe7 {[%clk 0:00:16]} 23. Qxe7 {[%clk 0:01:16]}  Nxe7 {[%clk 0:00:15]} 24. Bc5 {[%clk 0:01:17]}  Re8 {[%clk 0:00:08]} 25. Rxf7+ {[%clk 0:01:16]}  Kg6 {[%clk 0:00:07]} 26. Rxe7 {[%clk 0:01:13]}  Rxe7 {[%clk 0:00:07]} 27. Bxe7 {[%clk 0:01:13]}  Bg4 {[%clk 0:00:05]} 28. Rd6+ {[%clk 0:01:06]}  Kf7 {[%clk 0:00:03]} 29. Bf6 {[%clk 0:01:03]}  Be6 {[%clk 0:00:02]} 30. b3 {[%clk 0:01:03]}  Ra7 {[%clk 0:00:01]} 31. Kh2 {[%clk 0:01:02]}  a5 {[%clk 0:00:02]} 32. Rb6 {[%clk 0:00:58]}  b4 {[%clk 0:00:01]} 33. Kg3 {[%clk 0:00:57]}  Rd7 {[%clk 0:00:01]} 34. Ra6 {[%clk 0:00:52]}  Rd5 {[%clk 0:00:02]} 35. Kf3 {[%clk 0:00:45]}  Rc5 {[%clk 0:00:02]} 36. Ke4 {[%clk 0:00:43]}  Bd5+ {[%clk 0:00:03]} 37. Kd4 {[%clk 0:00:43]}  Rb5 {[%clk 0:00:02]} 38. g4 {[%clk 0:00:38]}  Be6 {[%clk 0:00:02]} 39. Ra7+ {[%clk 0:00:36]}  Kg6 {[%clk 0:00:02]} 40. Rg7# {[%clk 0:00:36]} 1-0


[Site "https://www.chess.com"]

[Event "Titled Tuesday Blitz April 18 Early 2023"]
[White "Kuchava, Ana"]
[Black "Koutsin, Sergey"]
[WhiteFideId "13605348"]
[BlackFideId "14101483"]
[WhiteElo "2001"]
[BlackElo "2381"]
[Result "0-1"]
[Round "05"]
[TimeControl "180+2"]
[Date "2023.04.18"]
[WhiteClock "0:00:01"]
[BlackClock "0:00:52"]

1. d4 {[%clk 0:03:00]}  Nf6 {[%clk 0:02:59]} 2. Nf3 {[%clk 0:02:51]}  b6 {[%clk 0:02:59]} 3. c4 {[%clk 0:02:50]}  Bb7 {[%clk 0:02:59]} 4. Nc3 {[%clk 0:02:50]}  e6 {[%clk 0:02:59]} 5. d5 {[%clk 0:02:45]}  Bb4 {[%clk 0:02:56]} 6. dxe6 {[%clk 0:02:12]}  fxe6 {[%clk 0:02:49]} 7. Bg5 {[%clk 0:01:57]}  O-O {[%clk 0:02:45]} 8. e3 {[%clk 0:01:56]}  Bxc3+ {[%clk 0:02:21]} 9. bxc3 {[%clk 0:01:54]}  Na6 {[%clk 0:02:22]} 10. Be2 {[%clk 0:01:38]}  Nc5 {[%clk 0:02:22]} 11. O-O {[%clk 0:01:37]}  Qe8 {[%clk 0:02:22]} 12. Ne5 {[%clk 0:01:05]}  Nfe4 {[%clk 0:02:21]} 13. Bf4 {[%clk 0:01:03]}  Nxc3 {[%clk 0:02:19]} 14. Qc2 {[%clk 0:01:02]}  Nxe2+ {[%clk 0:02:18]} 15. Qxe2 {[%clk 0:01:03]}  d6 {[%clk 0:02:18]} 16. Nd3 {[%clk 0:01:01]}  Qg6 {[%clk 0:02:04]} 17. Ne1 {[%clk 0:00:47]}  e5 {[%clk 0:01:55]} 18. Bg3 {[%clk 0:00:46]}  Rae8 {[%clk 0:01:46]} 19. Qc2 {[%clk 0:00:34]}  Be4 {[%clk 0:01:44]} 20. Qc3 {[%clk 0:00:23]}  a5 {[%clk 0:01:37]} 21. f3 {[%clk 0:00:14]}  Bf5 {[%clk 0:01:36]} 22. e4 {[%clk 0:00:13]}  Be6 {[%clk 0:01:36]} 23. Bf2 {[%clk 0:00:14]}  Nd7 {[%clk 0:01:25]} 24. Nd3 {[%clk 0:00:07]}  Qf7 {[%clk 0:01:25]} 25. Rac1 {[%clk 0:00:03]}  h6 {[%clk 0:01:22]} 26. Kh1 {[%clk 0:00:04]}  Kh7 {[%clk 0:01:22]} 27. Nb2 {[%clk 0:00:04]}  Qe7 {[%clk 0:01:15]} 28. Be3 {[%clk 0:00:04]}  g5 {[%clk 0:01:15]} 29. Qe1 {[%clk 0:00:04]}  Nf6 {[%clk 0:01:11]} 30. Qg3 {[%clk 0:00:04]}  Nh5 {[%clk 0:01:11]} 31. Qe1 {[%clk 0:00:03]}  Rf7 {[%clk 0:01:05]} 32. Nd3 {[%clk 0:00:03]}  Rg8 {[%clk 0:01:04]} 33. Qd2 {[%clk 0:00:03]}  Rfg7 {[%clk 0:01:01]} 34. Nf2 {[%clk 0:00:01]}  Qf7 {[%clk 0:01:00]} 35. Ng4 {[%clk 0:00:01]}  Bxc4 {[%clk 0:00:56]} 36. Rf2 {[%clk 0:00:01]}  Be6 {[%clk 0:00:56]} 37. Rc6 {[%clk 0:00:01]}  Qg6 {[%clk 0:00:52]} 0-1


[Site "https://www.chess.com"]

[Event "Titled Tuesday Blitz April 18 Early 2023"]
[White "Chirivi C, Jenny Astrid"]
[Black "Begunov, Konstantin"]
[WhiteFideId "4403061"]
[BlackFideId "4118510"]
[WhiteElo "2001"]
[BlackElo "2087"]
[Result "0-1"]
[Round "05"]
[TimeControl "180+2"]
[Date "2023.04.18"]
[WhiteClock "0:00:02"]
[BlackClock "0:00:17"]

1. d4 {[%clk 0:03:00]}  d5 {[%clk 0:02:54]} 2. c4 {[%clk 0:03:00]}  c6 {[%clk 0:02:54]} 3. Nf3 {[%clk 0:02:58]}  Nf6 {[%clk 0:02:55]} 4. Qc2 {[%clk 0:02:56]}  Bg4 {[%clk 0:02:54]} 5. Nbd2 {[%clk 0:02:52]}  e6 {[%clk 0:02:54]} 6. g3 {[%clk 0:02:51]}  Nbd7 {[%clk 0:02:43]} 7. Bg2 {[%clk 0:02:50]}  Bd6 {[%clk 0:02:42]} 8. O-O {[%clk 0:02:49]}  Bf5 {[%clk 0:02:42]} 9. Qb3 {[%clk 0:02:48]}  Rb8 {[%clk 0:02:42]} 10. Qa4 {[%clk 0:02:36]}  a6 {[%clk 0:02:36]} 11. Nh4 {[%clk 0:02:23]}  Bg4 {[%clk 0:02:31]} 12. h3 {[%clk 0:02:19]}  Bh5 {[%clk 0:02:28]} 13. e4 {[%clk 0:02:11]}  dxe4 {[%clk 0:01:34]} 14. Nxe4 {[%clk 0:02:10]}  Nxe4 {[%clk 0:01:31]} 15. Bxe4 {[%clk 0:02:10]}  Be7 {[%clk 0:01:21]} 16. Bf4 {[%clk 0:02:01]}  Rc8 {[%clk 0:01:04]} 17. Ng2 {[%clk 0:01:54]}  Nf6 {[%clk 0:01:02]} 18. Qc2 {[%clk 0:01:42]}  Qxd4 {[%clk 0:00:57]} 19. Rfe1 {[%clk 0:01:39]}  Nxe4 {[%clk 0:00:48]} 20. Rxe4 {[%clk 0:01:37]}  Qb6 {[%clk 0:00:38]} 21. Ree1 {[%clk 0:01:23]}  Bg6 {[%clk 0:00:33]} 22. Qc3 {[%clk 0:01:16]}  O-O {[%clk 0:00:27]} 23. Red1 {[%clk 0:01:10]}  Rfd8 {[%clk 0:00:22]} 24. Ne3 {[%clk 0:00:53]}  Bb4 {[%clk 0:00:21]} 25. Qb3 {[%clk 0:00:50]}  Bc5 {[%clk 0:00:21]} 26. Qxb6 {[%clk 0:00:48]}  Bxb6 {[%clk 0:00:22]} 27. Ng4 {[%clk 0:00:45]}  f6 {[%clk 0:00:22]} 28. Be3 {[%clk 0:00:42]}  Bc7 {[%clk 0:00:21]} 29. Bc5 {[%clk 0:00:38]}  h5 {[%clk 0:00:19]} 30. Ne3 {[%clk 0:00:37]}  Kf7 {[%clk 0:00:20]} 31. Rac1 {[%clk 0:00:34]}  Be4 {[%clk 0:00:19]} 32. Ng2 {[%clk 0:00:27]}  Bf3 {[%clk 0:00:19]} 33. Re1 {[%clk 0:00:22]}  Rd2 {[%clk 0:00:18]} 34. Nh4 {[%clk 0:00:15]}  Be2 {[%clk 0:00:18]} 35. Bb4 {[%clk 0:00:14]}  Rxb2 {[%clk 0:00:17]} 36. Bc3 {[%clk 0:00:14]}  Rxa2 {[%clk 0:00:17]} 37. Rb1 {[%clk 0:00:11]}  b5 {[%clk 0:00:17]} 38. c5 {[%clk 0:00:10]}  a5 {[%clk 0:00:16]} 39. Rb2 {[%clk 0:00:09]}  Rxb2 {[%clk 0:00:15]} 40. Bxb2 {[%clk 0:00:08]}  Bc4 {[%clk 0:00:16]} 41. Nf3 {[%clk 0:00:08]}  Rd8 {[%clk 0:00:16]} 42. Bc3 {[%clk 0:00:06]}  b4 {[%clk 0:00:17]} 43. Bb2 {[%clk 0:00:05]}  Rd3 {[%clk 0:00:17]} 44. Nh4 {[%clk 0:00:02]}  a4 {[%clk 0:00:17]} 45. Ng2 {[%clk 0:00:02]}  a3 {[%clk 0:00:17]} 46. Bc1 {[%clk 0:00:02]}  b3 {[%clk 0:00:17]} 0-1


[Site "https://www.chess.com"]

[Event "Titled Tuesday Blitz April 18 Early 2023"]
[White "Leve, Nitai"]
[Black "Osuna Vega, Enrique"]
[WhiteFideId "2006898"]
[BlackFideId "2219549"]
[WhiteElo "2144"]
[BlackElo "2129"]
[Result "1-0"]
[Round "05"]
[TimeControl "180+2"]
[Date "2023.04.18"]
[WhiteClock "0:00:03"]
[BlackClock "0:00:01"]

1. e4 {[%clk 0:01:33]}  d6 {[%clk 0:02:56]} 2. d4 {[%clk 0:01:33]}  Nf6 {[%clk 0:02:56]} 3. Nc3 {[%clk 0:01:33]}  e5 {[%clk 0:02:56]} 4. dxe5 {[%clk 0:01:34]}  dxe5 {[%clk 0:02:57]} 5. Qxd8+ {[%clk 0:01:34]}  Kxd8 {[%clk 0:02:58]} 6. Bg5 {[%clk 0:01:34]}  Be6 {[%clk 0:02:58]} 7. O-O-O+ {[%clk 0:01:35]}  Nd7 {[%clk 0:02:58]} 8. Nge2 {[%clk 0:01:33]}  Kc8 {[%clk 0:02:57]} 9. g3 {[%clk 0:01:31]}  c6 {[%clk 0:02:55]} 10. f4 {[%clk 0:01:28]}  Ng4 {[%clk 0:02:51]} 11. h3 {[%clk 0:01:02]}  Nf2 {[%clk 0:02:48]} 12. Bg2 {[%clk 0:01:02]}  Nxh1 {[%clk 0:02:42]} 13. Bxh1 {[%clk 0:01:03]}  f6 {[%clk 0:02:36]} 14. f5 {[%clk 0:01:01]}  Bc4 {[%clk 0:02:31]} 15. Be3 {[%clk 0:01:01]}  Bxe2 {[%clk 0:02:29]} 16. Nxe2 {[%clk 0:01:02]}  Bc5 {[%clk 0:02:28]} 17. Bxc5 {[%clk 0:00:59]}  Nxc5 {[%clk 0:02:29]} 18. b4 {[%clk 0:01:00]}  Na6 {[%clk 0:02:22]} 19. a3 {[%clk 0:00:59]}  Rd8 {[%clk 0:02:21]} 20. Rg1 {[%clk 0:00:56]}  Kc7 {[%clk 0:02:18]} 21. g4 {[%clk 0:00:55]}  h6 {[%clk 0:02:15]} 22. h4 {[%clk 0:00:55]}  Rh8 {[%clk 0:02:13]} 23. Bf3 {[%clk 0:00:53]}  Rad8 {[%clk 0:02:07]} 24. g5 {[%clk 0:00:53]}  hxg5 {[%clk 0:02:07]} 25. hxg5 {[%clk 0:00:54]}  Rh3 {[%clk 0:02:03]} 26. Bg4 {[%clk 0:00:12]}  Re3 {[%clk 0:01:58]} 27. Ng3 {[%clk 0:00:06]}  Nb8 {[%clk 0:01:45]} 28. Nh5 {[%clk 0:00:05]}  fxg5 {[%clk 0:01:32]} 29. Nxg7 {[%clk 0:00:05]}  Rh8 {[%clk 0:01:24]} 30. f6 {[%clk 0:00:05]}  Rxe4 {[%clk 0:01:18]} 31. Bf5 {[%clk 0:00:05]}  Rf4 {[%clk 0:01:14]} 32. Rxg5 {[%clk 0:00:04]}  Kd6 {[%clk 0:00:53]} 33. f7 {[%clk 0:00:05]}  Rf8 {[%clk 0:00:39]} 34. Bg6 {[%clk 0:00:02]}  Rf1+ {[%clk 0:00:33]} 35. Kb2 {[%clk 0:00:02]}  Nd7 {[%clk 0:00:29]} 36. Bh5 {[%clk 0:00:02]}  R8xf7 {[%clk 0:00:22]} 37. Bxf7 {[%clk 0:00:02]}  Rxf7 {[%clk 0:00:23]} 38. Nf5+ {[%clk 0:00:03]}  Ke6 {[%clk 0:00:22]} 39. Ng3 {[%clk 0:00:03]}  Nb6 {[%clk 0:00:15]} 40. Kb3 {[%clk 0:00:03]}  Nd5 {[%clk 0:00:14]} 41. Ne4 {[%clk 0:00:02]}  Rf4 {[%clk 0:00:10]} 42. Nc5+ {[%clk 0:00:02]}  Kf6 {[%clk 0:00:09]} 43. Rg8 {[%clk 0:00:02]}  b6 {[%clk 0:00:09]} 44. Na6 {[%clk 0:00:02]}  Rf3+ {[%clk 0:00:09]} 45. Kb2 {[%clk 0:00:02]}  e4 {[%clk 0:00:07]} 46. a4 {[%clk 0:00:01]}  e3 {[%clk 0:00:07]} 47. Rf8+ {[%clk 0:00:01]}  Ke5 {[%clk 0:00:06]} 48. Rxf3 {[%clk 0:00:02]}  Ke4 {[%clk 0:00:06]} 49. Rf8 {[%clk 0:00:03]}  Nf4 {[%clk 0:00:02]} 50. Re8+ {[%clk 0:00:03]}  Kf3 {[%clk 0:00:02]} 51. Nb8 {[%clk 0:00:04]}  Nd5 {[%clk 0:00:01]} 52. Nxc6 {[%clk 0:00:03]} 1-0


[Site "https://www.chess.com"]